[Event "Early-Titled-Tuesday-Blitz-November-28-2023"]
[Site "Chess.com"]
[Date "2023.11.28"]
[Round "11"]
[White "IwkooO"]
[Black "vovachesss"]
[Result "1/2-1/2"]
[WhiteElo "2691"]
[BlackElo "2851"]
[TimeControl "180+1"]
[EndTime "10:12:20 PST"]
[Termination "Game drawn by agreement"]

1. e4 {[%clk 0:03:00.9]} 1... e5 {[%clk 0:03:00.2]} 2. Nf3 {[%clk 0:02:50.9]}
2... d5 {[%clk 0:03:00.3]} 3. exd5 {[%clk 0:02:49.1]} 3... e4 {[%clk 0:03:01.2]}
4. Qe2 {[%clk 0:02:48.3]} 4... Nf6 {[%clk 0:03:01.8]} 5. d3 {[%clk 0:02:33.5]}
5... Qxd5 {[%clk 0:02:52.3]} 6. dxe4 {[%clk 0:02:01.1]} 6... Qxe4 {[%clk
0:02:51.7]} 7. Bg5 {[%clk 0:02:01.7]} 7... Bf5 {[%clk 0:02:44.3]} 8. Nc3 {[%clk
0:01:57]} 8... Qxe2+ {[%clk 0:02:36.3]} 9. Bxe2 {[%clk 0:01:53.8]} 9... Bxc2
{[%clk 0:02:34.5]} 10. Rc1 {[%clk 0:01:44.3]} 10... Bg6 {[%clk 0:02:29.7]} 11.
Bxf6 {[%clk 0:01:43.2]} 11... gxf6 {[%clk 0:02:30.6]} 12. Nd5 {[%clk 0:01:43.3]}
12... Bd6 {[%clk 0:02:20.8]} 13. Nxc7+ {[%clk 0:01:42.4]} 13... Bxc7 {[%clk
0:02:15]} 14. Rxc7 {[%clk 0:01:43]} 14... Nc6 {[%clk 0:02:07.4]} 15. Rxb7 {[%clk
0:01:38.3]} 15... O-O-O {[%clk 0:02:00.2]} 16. Rb3 {[%clk 0:01:22.2]} 16... Rhe8
{[%clk 0:01:59.8]} 17. Re3 {[%clk 0:01:22.3]} 17... Nb4 {[%clk 0:01:47.3]} 18.
O-O {[%clk 0:01:18]} 18... Rxe3 {[%clk 0:01:42.9]} 19. fxe3 {[%clk 0:01:18.6]}
19... Nc2 {[%clk 0:01:21.4]} 20. Nh4 {[%clk 0:00:35]} 20... Nxe3 {[%clk
0:01:08.8]} 21. Rxf6 {[%clk 0:00:29.7]} 21... Rd2 {[%clk 0:01:06.4]} 22. Bf3
{[%clk 0:00:29.9]} 22... Rxb2 {[%clk 0:00:54.9]} 23. Nxg6 {[%clk 0:00:30]} 23...
fxg6 {[%clk 0:00:54.3]} 24. Rf8+ {[%clk 0:00:29.8]} 24... Kc7 {[%clk 0:00:51.2]}
25. Rf7+ {[%clk 0:00:30.3]} 25... Kd6 {[%clk 0:00:50.3]} 26. Rxa7 {[%clk
0:00:29.9]} 26... Ke6 {[%clk 0:00:41]} 27. a4 {[%clk 0:00:28.5]} 27... h5 {[%clk
0:00:39.9]} 28. a5 {[%clk 0:00:22.8]} 28... Ng4 {[%clk 0:00:37.9]} 29. Bxg4+
{[%clk 0:00:18.7]} 29... hxg4 {[%clk 0:00:38.8]} 30. Ra8 {[%clk 0:00:16.8]}
30... Ra2 {[%clk 0:00:38.6]} 31. a6 {[%clk 0:00:16.7]} 31... Kf5 {[%clk
0:00:39]} 32. Kf1 {[%clk 0:00:15]} 32... Kg5 {[%clk 0:00:38.4]} 33. a7 {[%clk
0:00:08.8]} 33... Ra1+ {[%clk 0:00:27.2]} 34. Ke2 {[%clk 0:00:09.4]} 34... Ra2+
{[%clk 0:00:26.9]} 35. Ke3 {[%clk 0:00:09.9]} 35... Ra3+ {[%clk 0:00:27]} 36.
Kd4 {[%clk 0:00:10.6]} 36... Ra4+ {[%clk 0:00:26.9]} 37. Kc3 {[%clk 0:00:10.6]}
37... Ra3+ {[%clk 0:00:26.6]} 38. Kb4 {[%clk 0:00:10.8]} 38... Ra1 {[%clk
0:00:27]} 39. Kc5 {[%clk 0:00:10.7]} 39... Rc1+ {[%clk 0:00:23.7]} 40. Kd5
{[%clk 0:00:09.5]} 40... Ra1 {[%clk 0:00:23.7]} 41. Kd6 {[%clk 0:00:09.6]} 41...
Ra6+ {[%clk 0:00:23]} 42. Ke5 {[%clk 0:00:07.7]} 42... Ra1 {[%clk 0:00:23.9]}
43. Ke6 {[%clk 0:00:07.7]} 43... Ra6+ {[%clk 0:00:23.4]} 44. Kf7 {[%clk
0:00:08.1]} 44... Ra1 {[%clk 0:00:24.3]} 45. Kg7 {[%clk 0:00:08.7]} 45... Ra2
{[%clk 0:00:23.6]} 46. h4+ {[%clk 0:00:08.9]} 46... gxh3 {[%clk 0:00:23.3]} 47.
gxh3 {[%clk 0:00:09.6]} 47... Ra6 {[%clk 0:00:22.1]} 48. h4+ {[%clk 0:00:09.4]}
48... Kg4 {[%clk 0:00:20.5]} 49. Kh7 {[%clk 0:00:08.8]} 49... Kxh4 {[%clk
0:00:19.7]} 50. Kg7 {[%clk 0:00:08.4]} 50... Kg5 {[%clk 0:00:17.8]} 51. Kf7
{[%clk 0:00:07.8]} 51... Kg4 {[%clk 0:00:17.6]} 52. Ke7 {[%clk 0:00:07.8]} 52...
g5 {[%clk 0:00:17.6]} 53. Kd7 {[%clk 0:00:08.3]} 53... Ra1 {[%clk 0:00:17.8]}
54. Kc7 {[%clk 0:00:08.2]} 54... Kg3 {[%clk 0:00:16.8]} 55. Kb7 {[%clk
0:00:08.4]} 55... Rb1+ {[%clk 0:00:16.7]} 56. Kc7 {[%clk 0:00:08.9]} 56... Rc1+
{[%clk 0:00:15.7]} 1/2-1/2

[Event "Early-Titled-Tuesday-Blitz-November-28-2023"]
[Site "Chess.com"]
[Date "2023.11.28"]
[Round "11"]
[White "Korchmar_Vasiliy"]
[Black "Burovic00"]
[Result "1/2-1/2"]
[WhiteElo "2721"]
[BlackElo "2590"]
[TimeControl "180+1"]
[EndTime "10:12:22 PST"]
[Termination "Game drawn by repetition"]

1. e4 {[%clk 0:03:00.9]} 1... e6 {[%clk 0:02:59.5]} 2. d4 {[%clk 0:03:01.2]}
2... d5 {[%clk 0:02:59.9]} 3. e5 {[%clk 0:03:01.9]} 3... c5 {[%clk 0:02:59.9]}
4. c3 {[%clk 0:03:02.5]} 4... Nc6 {[%clk 0:03:00.3]} 5. Nf3 {[%clk 0:03:03.2]}
5... Bd7 {[%clk 0:03:01]} 6. Be2 {[%clk 0:03:03]} 6... Nge7 {[%clk 0:03:01.1]}
7. Na3 {[%clk 0:03:03.2]} 7... Nf5 {[%clk 0:02:50.3]} 8. Nc2 {[%clk 0:03:03.3]}
8... cxd4 {[%clk 0:02:45.4]} 9. cxd4 {[%clk 0:03:04.2]} 9... Rc8 {[%clk
0:02:45.8]} 10. h4 {[%clk 0:02:26.6]} 10... h5 {[%clk 0:02:06.6]} 11. Bd3 {[%clk
0:02:23.6]} 11... Be7 {[%clk 0:02:03.5]} 12. Bxf5 {[%clk 0:02:05]} 12... exf5
{[%clk 0:02:04.4]} 13. Bg5 {[%clk 0:02:05.3]} 13... f6 {[%clk 0:01:44.6]} 14.
exf6 {[%clk 0:01:50.7]} 14... gxf6 {[%clk 0:01:45.5]} 15. Bf4 {[%clk 0:01:48.5]}
15... Nb4 {[%clk 0:01:26.1]} 16. Nxb4 {[%clk 0:01:48]} 16... Bxb4+ {[%clk
0:01:27]} 17. Bd2 {[%clk 0:01:48.5]} 17... Bd6 {[%clk 0:01:25.8]} 18. O-O {[%clk
0:01:46.2]} 18... Kf7 {[%clk 0:01:21.3]} 19. Qb3 {[%clk 0:01:38.1]} 19... Bc6
{[%clk 0:01:16]} 20. Bb4 {[%clk 0:01:37.8]} 20... Bb8 {[%clk 0:00:59.1]} 21.
Rfe1 {[%clk 0:01:37]} 21... Rc7 {[%clk 0:00:46.4]} 22. Re3 {[%clk 0:01:22.4]}
22... Re8 {[%clk 0:00:40.9]} 23. Rxe8 {[%clk 0:01:20.1]} 23... Bxe8 {[%clk
0:00:36.5]} 24. Re1 {[%clk 0:01:21]} 24... Bc6 {[%clk 0:00:29.7]} 25. Qe3 {[%clk
0:01:20.2]} 25... Kg6 {[%clk 0:00:18.8]} 26. Qe6 {[%clk 0:01:17.7]} 26... Qc8
{[%clk 0:00:10.9]} 27. Qd6 {[%clk 0:00:16.7]} 27... Kg7 {[%clk 0:00:06.5]} 28.
Re7+ {[%clk 0:00:10.3]} 28... Rxe7 {[%clk 0:00:06.6]} 29. Qxe7+ {[%clk
0:00:11.2]} 29... Kg6 {[%clk 0:00:07.5]} 30. Bd6 {[%clk 0:00:07.6]} 30... Bxd6
{[%clk 0:00:05.3]} 31. Qxd6 {[%clk 0:00:08.5]} 31... Qe8 {[%clk 0:00:05.6]} 32.
g3 {[%clk 0:00:04.2]} 32... a6 {[%clk 0:00:05.1]} 33. Kg2 {[%clk 0:00:03.5]}
33... Qe4 {[%clk 0:00:05.3]} 34. Qb8 {[%clk 0:00:02.2]} 34... f4 {[%clk
0:00:05.2]} 35. Qg8+ {[%clk 0:00:02.2]} 35... Kh6 {[%clk 0:00:03.3]} 36. Qf8+
{[%clk 0:00:02.1]} 36... Kg6 {[%clk 0:00:03.7]} 37. Qg8+ {[%clk 0:00:02.3]}
37... Kh6 {[%clk 0:00:04.2]} 38. Qh8+ {[%clk 0:00:02.5]} 38... Kg6 {[%clk
0:00:04.6]} 39. a3 {[%clk 0:00:02.4]} 39... fxg3 {[%clk 0:00:04.5]} 40. fxg3
{[%clk 0:00:01.6]} 40... Qe2+ {[%clk 0:00:04.4]} 41. Kh3 {[%clk 0:00:02.2]}
41... Qxf3 {[%clk 0:00:05.3]} 42. Qg8+ {[%clk 0:00:02.2]} 42... Kf5 {[%clk
0:00:04.9]} 43. Qh7+ {[%clk 0:00:02.6]} 43... Ke6 {[%clk 0:00:04.6]} 44. Qg8+
{[%clk 0:00:03.1]} 44... Kd7 {[%clk 0:00:02.5]} 45. Qf7+ {[%clk 0:00:03.1]}
45... Kd6 {[%clk 0:00:02.9]} 46. Qf8+ {[%clk 0:00:03.4]} 46... Kc7 {[%clk
0:00:03.5]} 47. Qe7+ {[%clk 0:00:04]} 47... Kb8 {[%clk 0:00:03.9]} 48. Qf8+
{[%clk 0:00:04.7]} 48... Ka7 {[%clk 0:00:04.1]} 49. Qc5+ {[%clk 0:00:05.3]}
49... Kb8 {[%clk 0:00:04.6]} 50. Qd6+ {[%clk 0:00:05.5]} 50... Kc8 {[%clk
0:00:05.1]} 51. Qf8+ {[%clk 0:00:05.8]} 51... Kd7 {[%clk 0:00:05.7]} 52. Qf7+
{[%clk 0:00:06]} 52... Kd6 {[%clk 0:00:06.3]} 53. Qf8+ {[%clk 0:00:06.3]} 53...
Ke6 {[%clk 0:00:06.8]} 54. Qg8+ {[%clk 0:00:03.4]} 54... Ke7 {[%clk 0:00:06.6]}
55. Qg7+ {[%clk 0:00:03.3]} 55... Ke8 {[%clk 0:00:07]} 56. Qg8+ {[%clk
0:00:03.7]} 56... Kd7 {[%clk 0:00:06.7]} 57. Qf7+ {[%clk 0:00:03.6]} 1/2-1/2

[Event "Early-Titled-Tuesday-Blitz-November-28-2023"]
[Site "Chess.com"]
[Date "2023.11.28"]
[Round "11"]
[White "LaPiToB"]
[Black "salomez"]
[Result "0-1"]
[WhiteElo "2270"]
[BlackElo "2405"]
[TimeControl "180+1"]
[EndTime "10:12:24 PST"]
[Termination "salomez won on time"]

1. d4 {[%clk 0:03:00.9]} 1... e6 {[%clk 0:02:57.5]} 2. c4 {[%clk 0:03:00.9]}
2... f5 {[%clk 0:02:56.8]} 3. g3 {[%clk 0:02:59.7]} 3... Nf6 {[%clk 0:02:56]} 4.
Bg2 {[%clk 0:02:59.8]} 4... Bb4+ {[%clk 0:02:55.3]} 5. Nc3 {[%clk 0:02:55.1]}
5... Bxc3+ {[%clk 0:02:54.2]} 6. bxc3 {[%clk 0:02:54.6]} 6... O-O {[%clk
0:02:55.1]} 7. Nf3 {[%clk 0:02:54]} 7... Ne4 {[%clk 0:02:48.6]} 8. Qc2 {[%clk
0:02:51.4]} 8... b6 {[%clk 0:02:48.6]} 9. O-O {[%clk 0:02:49.6]} 9... Bb7 {[%clk
0:02:48.6]} 10. a4 {[%clk 0:02:43.6]} 10... Nc6 {[%clk 0:02:45.4]} 11. Ba3
{[%clk 0:02:27.8]} 11... d6 {[%clk 0:02:40.3]} 12. Nd2 {[%clk 0:02:24.7]} 12...
Nxd2 {[%clk 0:02:33.1]} 13. Qxd2 {[%clk 0:02:23]} 13... Na5 {[%clk 0:02:27.9]}
14. Bxb7 {[%clk 0:02:18]} 14... Nxb7 {[%clk 0:02:28.8]} 15. Qe3 {[%clk
0:02:08.6]} 15... Qf6 {[%clk 0:02:23.1]} 16. c5 {[%clk 0:02:05.6]} 16... Rfd8
{[%clk 0:02:13.5]} 17. cxd6 {[%clk 0:01:55.6]} 17... cxd6 {[%clk 0:02:08.9]} 18.
Qf3 {[%clk 0:01:55.1]} 18... Qf7 {[%clk 0:02:06.3]} 19. e4 {[%clk 0:01:50]}
19... fxe4 {[%clk 0:01:42.5]} 20. Qxe4 {[%clk 0:01:48.2]} 20... d5 {[%clk
0:01:38.8]} 21. Qe2 {[%clk 0:01:40.8]} 21... Rac8 {[%clk 0:01:37.9]} 22. Rac1
{[%clk 0:01:39.3]} 22... Na5 {[%clk 0:01:35.4]} 23. f4 {[%clk 0:01:35.5]} 23...
Nc4 {[%clk 0:01:34.9]} 24. Bb2 {[%clk 0:01:17.4]} 24... Qd7 {[%clk 0:01:29]} 25.
Ra1 {[%clk 0:01:15.5]} 25... Re8 {[%clk 0:01:26.5]} 26. Bc1 {[%clk 0:01:11.7]}
26... Na5 {[%clk 0:01:23.5]} 27. Bd2 {[%clk 0:01:09.1]} 27... Qc6 {[%clk
0:01:19.3]} 28. Ra2 {[%clk 0:01:01.5]} 28... Qc4 {[%clk 0:01:18.1]} 29. Be1
{[%clk 0:00:56.2]} 29... Qxe2 {[%clk 0:01:07.5]} 30. Rxe2 {[%clk 0:00:57.1]}
30... g6 {[%clk 0:01:08.1]} 31. Rf3 {[%clk 0:00:52.6]} 31... Rc4 {[%clk
0:01:06.8]} 32. Rfe3 {[%clk 0:00:52.6]} 32... Kf7 {[%clk 0:00:55.2]} 33. Ra2
{[%clk 0:00:52]} 33... Rec8 {[%clk 0:00:51.7]} 34. g4 {[%clk 0:00:50.9]} 34...
Nb7 {[%clk 0:00:41.4]} 35. f5 {[%clk 0:00:50.8]} 35... gxf5 {[%clk 0:00:39.3]}
36. gxf5 {[%clk 0:00:51.7]} 36... exf5 {[%clk 0:00:38.2]} 37. Rae2 {[%clk
0:00:47.9]} 37... R8c7 {[%clk 0:00:31.2]} 38. Bg3 {[%clk 0:00:46.8]} 38... Rd7
{[%clk 0:00:31.4]} 39. Rf2 {[%clk 0:00:42.5]} 39... Rxa4 {[%clk 0:00:14]} 40.
Rxf5+ {[%clk 0:00:40.9]} 40... Kg6 {[%clk 0:00:14.2]} 41. Rf4 {[%clk 0:00:34.9]}
41... Nd6 {[%clk 0:00:13.7]} 42. Re6+ {[%clk 0:00:34.9]} 42... Kg7 {[%clk
0:00:10.5]} 43. Rg4+ {[%clk 0:00:31.4]} 43... Kf7 {[%clk 0:00:10.7]} 44. Rxd6
{[%clk 0:00:31.6]} 44... Rxd6 {[%clk 0:00:10.7]} 45. Bxd6 {[%clk 0:00:31.8]}
45... Ra1+ {[%clk 0:00:10.5]} 46. Kf2 {[%clk 0:00:30.8]} 46... a5 {[%clk
0:00:10.6]} 47. Bc7 {[%clk 0:00:24]} 47... Rb1 {[%clk 0:00:10.2]} 48. Rg5 {[%clk
0:00:19.7]} 48... Ke6 {[%clk 0:00:09.9]} 49. Re5+ {[%clk 0:00:19.8]} 49... Kd7
{[%clk 0:00:10]} 50. Bb8 {[%clk 0:00:18]} 50... a4 {[%clk 0:00:08.4]} 51. Rxd5+
{[%clk 0:00:17]} 51... Kc6 {[%clk 0:00:08.9]} 52. Re5 {[%clk 0:00:10.5]} 52...
a3 {[%clk 0:00:09.2]} 53. Re6+ {[%clk 0:00:05.6]} 53... Kb7 {[%clk 0:00:08.9]}
54. Re2 {[%clk 0:00:02.4]} 54... Rb2 {[%clk 0:00:08.6]} 0-1

[Event "Early-Titled-Tuesday-Blitz-November-28-2023"]
[Site "Chess.com"]
[Date "2023.11.28"]
[Round "11"]
[White "Aguiar94"]
[Black "Atousa1"]
[Result "0-1"]
[WhiteElo "2597"]
[BlackElo "2478"]
[TimeControl "180+1"]
[EndTime "10:12:31 PST"]
[Termination "Atousa1 won by resignation"]

1. e4 {[%clk 0:03:00.4]} 1... c5 {[%clk 0:02:59.9]} 2. Nf3 {[%clk 0:03:00.4]}
2... e6 {[%clk 0:03:00.4]} 3. d4 {[%clk 0:03:00.4]} 3... cxd4 {[%clk 0:03:01.3]}
4. Nxd4 {[%clk 0:03:01.1]} 4... a6 {[%clk 0:03:02.2]} 5. Bd3 {[%clk 0:03:01.3]}
5... Bc5 {[%clk 0:03:01.7]} 6. Nb3 {[%clk 0:03:01.6]} 6... Be7 {[%clk
0:03:02.2]} 7. Qg4 {[%clk 0:03:01.9]} 7... g6 {[%clk 0:03:02]} 8. Qe2 {[%clk
0:03:01.9]} 8... d6 {[%clk 0:03:02.2]} 9. Be3 {[%clk 0:03:02.4]} 9... Nf6 {[%clk
0:03:02]} 10. f4 {[%clk 0:03:02]} 10... Nc6 {[%clk 0:03:01.7]} 11. N1d2 {[%clk
0:03:01.3]} 11... Qc7 {[%clk 0:03:01.7]} 12. O-O-O {[%clk 0:03:00.6]} 12... b5
{[%clk 0:03:02.1]} 13. Kb1 {[%clk 0:02:59.9]} 13... Bb7 {[%clk 0:03:02.6]} 14.
Rhf1 {[%clk 0:02:59.4]} 14... O-O {[%clk 0:02:56.7]} 15. g4 {[%clk 0:02:59.5]}
15... Nb4 {[%clk 0:02:53.8]} 16. g5 {[%clk 0:02:59.5]} 16... Nh5 {[%clk
0:02:53.1]} 17. f5 {[%clk 0:02:59.5]} 17... Nxd3 {[%clk 0:02:45.7]} 18. cxd3
{[%clk 0:03:00.4]} 18... Rfc8 {[%clk 0:02:41.6]} 19. fxe6 {[%clk 0:02:51.3]}
19... fxe6 {[%clk 0:02:41.1]} 20. Nd4 {[%clk 0:02:49.7]} 20... e5 {[%clk
0:02:32.6]} 21. Nf5 {[%clk 0:02:34.4]} 21... Bf8 {[%clk 0:02:27.5]} 22. Nb3
{[%clk 0:02:17.3]} 22... a5 {[%clk 0:02:22.8]} 23. Rc1 {[%clk 0:01:52.9]} 23...
Qd8 {[%clk 0:02:16.3]} 24. Rxc8 {[%clk 0:01:50.8]} 24... Rxc8 {[%clk 0:02:17.2]}
25. Nh6+ {[%clk 0:01:46.3]} 25... Bxh6 {[%clk 0:02:16.6]} 26. gxh6 {[%clk
0:01:47.2]} 26... a4 {[%clk 0:02:17.3]} 27. Nd2 {[%clk 0:01:32.9]} 27... a3
{[%clk 0:02:17.5]} 28. Nf3 {[%clk 0:01:30.9]} 28... axb2 {[%clk 0:02:15.9]} 29.
Qxb2 {[%clk 0:01:26.8]} 29... Qf6 {[%clk 0:02:02.2]} 30. Qb3+ {[%clk 0:01:22.8]}
30... Kh8 {[%clk 0:02:01.2]} 31. Nd2 {[%clk 0:01:21.2]} 31... Qd8 {[%clk
0:01:27.8]} 32. Qf7 {[%clk 0:01:10.1]} 32... Qg8 {[%clk 0:00:15.4]} 33. Qxb7
{[%clk 0:01:07.7]} 33... Ra8 {[%clk 0:00:15.6]} 34. Rf7 {[%clk 0:01:02.7]} 34...
Nf4 {[%clk 0:00:12.1]} 35. Rxf4 {[%clk 0:00:49.6]} 35... exf4 {[%clk 0:00:12.8]}
36. Kc1 {[%clk 0:00:50.1]} 36... fxe3 {[%clk 0:00:10.6]} 37. Nb3 {[%clk
0:00:46.5]} 37... Qc8+ {[%clk 0:00:10]} 38. Qxc8+ {[%clk 0:00:45.8]} 38... Rxc8+
{[%clk 0:00:10.9]} 39. Kd1 {[%clk 0:00:46.5]} 39... Ra8 {[%clk 0:00:11]} 40. Ke2
{[%clk 0:00:42.9]} 40... Rxa2+ {[%clk 0:00:11.2]} 41. Kxe3 {[%clk 0:00:43.4]}
41... Rxh2 {[%clk 0:00:12]} 42. Nd4 {[%clk 0:00:44.3]} 42... Rxh6 {[%clk
0:00:11.8]} 43. Nxb5 {[%clk 0:00:44.9]} 43... Rh1 {[%clk 0:00:11.8]} 44. Nxd6
{[%clk 0:00:44.6]} 44... h5 {[%clk 0:00:12.2]} 45. e5 {[%clk 0:00:44.6]} 45...
Kg7 {[%clk 0:00:10.9]} 46. Kf4 {[%clk 0:00:41.6]} 46... h4 {[%clk 0:00:11.2]}
47. Ne4 {[%clk 0:00:39.1]} 47... h3 {[%clk 0:00:10.8]} 48. Kg3 {[%clk
0:00:39.4]} 48... Rd1 {[%clk 0:00:10.1]} 49. Nc5 {[%clk 0:00:39.4]} 49... Rc1
{[%clk 0:00:07.6]} 50. Ne6+ {[%clk 0:00:37.8]} 50... Kh6 {[%clk 0:00:06.3]} 51.
Kxh3 {[%clk 0:00:31.2]} 51... Rc3 {[%clk 0:00:06.7]} 52. Kg4 {[%clk 0:00:28.7]}
52... Rxd3 {[%clk 0:00:06.7]} 53. Nf4 {[%clk 0:00:29.6]} 53... Rd1 {[%clk
0:00:06]} 54. Ng2 {[%clk 0:00:29.3]} 54... Rg1 {[%clk 0:00:05.9]} 55. Kf3 {[%clk
0:00:29.5]} 55... Rf1+ {[%clk 0:00:04.1]} 56. Ke2 {[%clk 0:00:27.8]} 56... Rf5
{[%clk 0:00:03.7]} 57. e6 {[%clk 0:00:26.7]} 57... Re5+ {[%clk 0:00:04.2]} 58.
Kf3 {[%clk 0:00:27.6]} 58... Rxe6 {[%clk 0:00:05.1]} 59. Nf4 {[%clk 0:00:27.9]}
59... Rf6 {[%clk 0:00:05.6]} 60. Kg4 {[%clk 0:00:28.5]} 60... Rxf4+ {[%clk
0:00:05.9]} 61. Kxf4 {[%clk 0:00:29.4]} 61... Kh5 {[%clk 0:00:06.6]} 62. Kg3
{[%clk 0:00:29.7]} 62... Kg5 {[%clk 0:00:07.2]} 63. Kf3 {[%clk 0:00:29.9]} 63...
Kh4 {[%clk 0:00:07.8]} 64. Kf2 {[%clk 0:00:30.5]} 64... Kh3 {[%clk 0:00:07.7]}
65. Kf1 {[%clk 0:00:30.9]} 65... g5 {[%clk 0:00:08.2]} 66. Kf2 {[%clk
0:00:30.3]} 66... g4 {[%clk 0:00:07.5]} 67. Kg1 {[%clk 0:00:29.7]} 67... Kg3
{[%clk 0:00:08]} 68. Kh1 {[%clk 0:00:29.1]} 68... Kf2 {[%clk 0:00:08.5]} 69. Kh2
{[%clk 0:00:29.6]} 69... g3+ {[%clk 0:00:09.1]} 70. Kh3 {[%clk 0:00:30]} 70...
g2 {[%clk 0:00:10]} 0-1

[Event "Early-Titled-Tuesday-Blitz-November-28-2023"]
[Site "Chess.com"]
[Date "2023.11.28"]
[Round "11"]
[White "Elsa167"]
[Black "OK97"]
[Result "1-0"]
[WhiteElo "2915"]
[BlackElo "2786"]
[TimeControl "180+1"]
[EndTime "10:12:32 PST"]
[Termination "Elsa167 won by resignation"]

1. e4 {[%clk 0:03:00.4]} 1... c5 {[%clk 0:02:59.5]} 2. Nf3 {[%clk 0:02:59.5]}
2... d6 {[%clk 0:02:59.9]} 3. d4 {[%clk 0:02:59.3]} 3... cxd4 {[%clk 0:03:00.8]}
4. Nxd4 {[%clk 0:03:00.2]} 4... Nf6 {[%clk 0:03:01.3]} 5. Nc3 {[%clk 0:03:00.9]}
5... Nc6 {[%clk 0:03:01.7]} 6. Bg5 {[%clk 0:03:00]} 6... e6 {[%clk 0:03:02]} 7.
Qd2 {[%clk 0:02:57.9]} 7... a6 {[%clk 0:03:01.6]} 8. O-O-O {[%clk 0:02:54.6]}
8... Bd7 {[%clk 0:03:01.9]} 9. Kb1 {[%clk 0:02:53.6]} 9... Nxd4 {[%clk
0:03:01.5]} 10. Qxd4 {[%clk 0:02:53.7]} 10... Be7 {[%clk 0:02:59.9]} 11. f3
{[%clk 0:02:51.8]} 11... Qc7 {[%clk 0:02:55.8]} 12. h4 {[%clk 0:02:50.7]} 12...
h6 {[%clk 0:02:40.6]} 13. Be3 {[%clk 0:02:49.5]} 13... h5 {[%clk 0:02:37.7]} 14.
Bg5 {[%clk 0:02:49.7]} 14... Bc6 {[%clk 0:02:35.3]} 15. Bd3 {[%clk 0:02:46.6]}
15... b5 {[%clk 0:02:28.8]} 16. Ne2 {[%clk 0:02:42.6]} 16... Rd8 {[%clk
0:02:25.8]} 17. Qc3 {[%clk 0:02:34]} 17... Qb6 {[%clk 0:02:18.3]} 18. Nd4 {[%clk
0:02:31.1]} 18... Bb7 {[%clk 0:02:16.7]} 19. Be3 {[%clk 0:02:26.9]} 19... Rc8
{[%clk 0:01:45]} 20. Qe1 {[%clk 0:01:58.8]} 20... Qc7 {[%clk 0:01:43.9]} 21. Qg3
{[%clk 0:01:59]} 21... Kf8 {[%clk 0:01:40.6]} 22. c3 {[%clk 0:01:45]} 22... Nd7
{[%clk 0:01:37.6]} 23. Bg5 {[%clk 0:01:35.1]} 23... Ne5 {[%clk 0:01:31.3]} 24.
Be2 {[%clk 0:01:30.3]} 24... Kg8 {[%clk 0:01:10.7]} 25. Rd2 {[%clk 0:01:26.8]}
25... Bf8 {[%clk 0:01:00.8]} 26. Rhd1 {[%clk 0:01:23]} 26... Nc4 {[%clk
0:00:57.4]} 27. Bxc4 {[%clk 0:01:22.9]} 27... Qxc4 {[%clk 0:00:56.6]} 28. Nc2
{[%clk 0:01:17.2]} 28... d5 {[%clk 0:00:41.1]} 29. Ne3 {[%clk 0:01:03.9]} 29...
Qa4 {[%clk 0:00:38]} 30. exd5 {[%clk 0:00:59.5]} 30... b4 {[%clk 0:00:33.5]} 31.
b3 {[%clk 0:00:52.7]} 31... Qe8 {[%clk 0:00:30.2]} 32. c4 {[%clk 0:00:52.3]}
32... exd5 {[%clk 0:00:26]} 33. Nxd5 {[%clk 0:00:51.1]} 33... Qe6 {[%clk
0:00:24.2]} 34. Qf4 {[%clk 0:00:22.4]} 34... Qg6+ {[%clk 0:00:22.2]} 35. Qe4
{[%clk 0:00:12.5]} 35... Qxe4+ {[%clk 0:00:22.3]} 36. fxe4 {[%clk 0:00:13]}
36... Re8 {[%clk 0:00:23]} 37. Re2 {[%clk 0:00:08.2]} 37... f6 {[%clk 0:00:18]}
38. Bd2 {[%clk 0:00:04.6]} 38... a5 {[%clk 0:00:17.7]} 39. Rde1 {[%clk
0:00:04.5]} 39... Bd6 {[%clk 0:00:16.8]} 40. Bf4 {[%clk 0:00:04.1]} 40... Bxd5
{[%clk 0:00:15.4]} 41. Bxd6 {[%clk 0:00:04.6]} 41... Bc6 {[%clk 0:00:10.5]} 42.
Bc7 {[%clk 0:00:04.9]} 42... a4 {[%clk 0:00:10.2]} 43. Bd6 {[%clk 0:00:05.4]}
43... axb3 {[%clk 0:00:09.9]} 44. axb3 {[%clk 0:00:06.3]} 44... Kh7 {[%clk
0:00:09.4]} 45. Kb2 {[%clk 0:00:06.9]} 45... Re6 {[%clk 0:00:06.9]} 46. Bxb4
{[%clk 0:00:07.4]} 46... Rhe8 {[%clk 0:00:07.6]} 47. g3 {[%clk 0:00:05.1]} 47...
Bxe4 {[%clk 0:00:07.6]} 48. Bc3 {[%clk 0:00:05.6]} 48... f5 {[%clk 0:00:07.6]}
49. Rd2 {[%clk 0:00:05.1]} 49... Rg6 {[%clk 0:00:07.6]} 50. Re3 {[%clk
0:00:05.2]} 50... Rb8 {[%clk 0:00:07]} 51. Be5 {[%clk 0:00:05.5]} 51... Re8
{[%clk 0:00:05.5]} 52. Bf4 {[%clk 0:00:04.9]} 52... Rc8 {[%clk 0:00:05.9]} 53.
Rd7 {[%clk 0:00:04.9]} 53... Kg8 {[%clk 0:00:04.1]} 54. Rc3 {[%clk 0:00:04.2]}
54... Ra6 {[%clk 0:00:03.7]} 55. b4 {[%clk 0:00:04.4]} 55... Rb6 {[%clk
0:00:03.9]} 56. b5 {[%clk 0:00:04.8]} 56... Rc5 {[%clk 0:00:02.7]} 57. Be3
{[%clk 0:00:03.8]} 57... Rcxb5+ {[%clk 0:00:03.2]} 58. cxb5 {[%clk 0:00:04.7]}
58... Rxb5+ {[%clk 0:00:03.8]} 59. Rb3 {[%clk 0:00:05.4]} 1-0